[Event "Titled Tuesday Blitz August 08 Late 2023"]
[White "Ilkhomi, Jaloliddin"]
[Black "Carrasco Miranda, Andres"]
[WhiteFideId "14700948"]
[BlackFideId "3405990"]
[WhiteElo "2623"]
[BlackElo "2340"]
[Result "0-1"]
[Round "1"]
[TimeControl "180+1"]
[Date "2023.08.08"]
[WhiteClock "0:00:07"]
[BlackClock "0:00:15"]
[Board "116"]

1. Nf3 {[%clk 0:03:00]}  Nf6 {[%clk 0:02:57]} 2. d4 {[%clk 0:02:59]}  g6 {[%clk 0:02:57]} 3. Bg5 {[%clk 0:02:56]}  Bg7 {[%clk 0:02:57]} 4. Nbd2 {[%clk 0:02:56]}  c5 {[%clk 0:02:55]} 5. c3 {[%clk 0:02:56]}  h6 {[%clk 0:02:55]} 6. Bxf6 {[%clk 0:02:54]}  Bxf6 {[%clk 0:02:54]} 7. e3 {[%clk 0:02:53]}  d6 {[%clk 0:02:54]} 8. dxc5 {[%clk 0:02:52]}  dxc5 {[%clk 0:02:53]} 9. Ne4 {[%clk 0:02:52]}  Qc7 {[%clk 0:02:47]} 10. Nxf6+ {[%clk 0:02:51]}  exf6 {[%clk 0:02:48]} 11. Bc4 {[%clk 0:02:49]}  O-O {[%clk 0:02:45]} 12. Qc2 {[%clk 0:02:49]}  Kg7 {[%clk 0:02:45]} 13. O-O {[%clk 0:02:48]}  Nc6 {[%clk 0:02:44]} 14. a4 {[%clk 0:02:46]}  Bf5 {[%clk 0:02:44]} 15. e4 {[%clk 0:02:45]}  Bg4 {[%clk 0:02:43]} 16. Be2 {[%clk 0:02:43]}  Bxf3 {[%clk 0:02:42]} 17. Bxf3 {[%clk 0:02:42]}  Qf4 {[%clk 0:02:40]} 18. Qc1 {[%clk 0:02:38]}  Qxc1 {[%clk 0:02:40]} 19. Raxc1 {[%clk 0:02:38]}  Ne5 {[%clk 0:02:40]} 20. Be2 {[%clk 0:02:39]}  Rad8 {[%clk 0:02:38]} 21. Rfd1 {[%clk 0:02:38]}  g5 {[%clk 0:02:26]} 22. h3 {[%clk 0:02:36]}  Rfe8 {[%clk 0:02:18]} 23. g3 {[%clk 0:02:22]}  Kf8 {[%clk 0:02:15]} 24. Bb5 {[%clk 0:02:19]}  Rxd1+ {[%clk 0:02:14]} 25. Rxd1 {[%clk 0:02:19]}  Rb8 {[%clk 0:02:05]} 26. Kg2 {[%clk 0:02:10]}  a6 {[%clk 0:02:04]} 27. Be2 {[%clk 0:02:10]}  Ke7 {[%clk 0:02:00]} 28. f4 {[%clk 0:02:07]}  Ng6 {[%clk 0:01:58]} 29. Kf3 {[%clk 0:02:01]}  Rd8 {[%clk 0:01:53]} 30. Rxd8 {[%clk 0:01:59]}  Kxd8 {[%clk 0:01:54]} 31. Kg4 {[%clk 0:01:56]}  Ke7 {[%clk 0:01:50]} 32. f5 {[%clk 0:01:51]}  Ne5+ {[%clk 0:01:48]} 33. Kh5 {[%clk 0:01:49]}  c4 {[%clk 0:01:45]} 34. Kxh6 {[%clk 0:01:46]}  Nd3 {[%clk 0:01:45]} 35. b3 {[%clk 0:01:41]}  Nf2 {[%clk 0:01:36]} 36. Bxc4 {[%clk 0:01:39]}  Nxe4 {[%clk 0:01:34]} 37. h4 {[%clk 0:01:23]}  Nxg3 {[%clk 0:01:30]} 38. hxg5 {[%clk 0:01:17]}  Nxf5+ {[%clk 0:01:29]} 39. Kh5 {[%clk 0:01:16]}  Ne3 {[%clk 0:01:20]} 40. Be2 {[%clk 0:01:07]}  a5 {[%clk 0:01:12]} 41. Bf3 {[%clk 0:00:55]}  b6 {[%clk 0:01:11]} 42. b4 {[%clk 0:00:53]}  b5 {[%clk 0:00:23]} 43. bxa5 {[%clk 0:00:44]}  bxa4 {[%clk 0:00:24]} 44. a6 {[%clk 0:00:35]}  Nc4 {[%clk 0:00:23]} 45. a7 {[%clk 0:00:33]}  Nb6 {[%clk 0:00:23]} 46. Bd5 {[%clk 0:00:27]}  a3 {[%clk 0:00:20]} 47. Bb3 {[%clk 0:00:16]}  fxg5 {[%clk 0:00:19]} 48. Kxg5 {[%clk 0:00:14]}  f6+ {[%clk 0:00:17]} 49. Kf5 {[%clk 0:00:14]}  Kd6 {[%clk 0:00:15]} 50. Kxf6 {[%clk 0:00:12]}  Kc7 {[%clk 0:00:14]} 51. Bd5 {[%clk 0:00:11]}  Nxd5+ {[%clk 0:00:14]} 52. Ke5 {[%clk 0:00:10]}  Nb6 {[%clk 0:00:14]} 53. c4 {[%clk 0:00:10]}  a2 {[%clk 0:00:15]} 54. c5 {[%clk 0:00:07]}  Na8 {[%clk 0:00:15]} 0-1


[Site "https://www.chess.com"]

[Event "Titled Tuesday Blitz August 08 Late 2023"]
[White "Deviprasath, Sharvesh"]
[Black "Arabidze, Meri"]
[WhiteFideId "30938228"]
[BlackFideId "13604040"]
[WhiteElo "2335"]
[BlackElo "2618"]
[Result "1-0"]
[Round "1"]
[TimeControl "180+1"]
[Date "2023.08.08"]
[WhiteClock "0:00:37"]
[BlackClock "0:00:00"]
[Board "119"]

1. Nf3 {[%clk 0:03:00]}  f5 {[%clk 0:02:59]} 2. b3 {[%clk 0:03:01]}  Nf6 {[%clk 0:02:57]} 3. Bb2 {[%clk 0:03:02]}  e6 {[%clk 0:02:58]} 4. g3 {[%clk 0:03:03]}  d5 {[%clk 0:02:54]} 5. Bg2 {[%clk 0:03:03]}  Bd6 {[%clk 0:02:55]} 6. O-O {[%clk 0:03:03]}  O-O {[%clk 0:02:55]} 7. c4 {[%clk 0:03:02]}  c6 {[%clk 0:02:55]} 8. d3 {[%clk 0:03:03]}  Nbd7 {[%clk 0:02:55]} 9. Nc3 {[%clk 0:03:03]}  a6 {[%clk 0:02:54]} 10. a3 {[%clk 0:03:03]}  e5 {[%clk 0:02:54]} 11. cxd5 {[%clk 0:03:02]}  cxd5 {[%clk 0:02:54]} 12. e4 {[%clk 0:03:02]}  fxe4 {[%clk 0:02:51]} 13. dxe4 {[%clk 0:03:03]}  d4 {[%clk 0:02:52]} 14. Nd5 {[%clk 0:02:59]}  Nc5 {[%clk 0:02:48]} 15. Nxf6+ {[%clk 0:02:55]}  Qxf6 {[%clk 0:02:49]} 16. Nd2 {[%clk 0:02:54]}  b5 {[%clk 0:02:39]} 17. b4 {[%clk 0:02:44]}  Ne6 {[%clk 0:02:37]} 18. f4 {[%clk 0:02:31]}  Bb7 {[%clk 0:02:25]} 19. Qb3 {[%clk 0:02:27]}  Kh8 {[%clk 0:02:23]} 20. fxe5 {[%clk 0:02:26]}  Qxe5 {[%clk 0:02:24]} 21. Rfe1 {[%clk 0:02:14]}  Ng5 {[%clk 0:02:10]} 22. Qd3 {[%clk 0:01:58]}  Rad8 {[%clk 0:02:00]} 23. Bxd4 {[%clk 0:01:56]}  Qe6 {[%clk 0:01:57]} 24. Qc3 {[%clk 0:01:54]}  Rd7 {[%clk 0:01:44]} 25. Nb3 {[%clk 0:01:45]}  Nh3+ {[%clk 0:01:34]} 26. Kh1 {[%clk 0:01:43]}  Nf2+ {[%clk 0:01:19]} 27. Bxf2 {[%clk 0:01:40]}  Rxf2 {[%clk 0:01:20]} 28. Rad1 {[%clk 0:01:39]}  h6 {[%clk 0:01:16]} 29. Nc5 {[%clk 0:01:36]}  Bxc5 {[%clk 0:01:16]} 30. Qxc5 {[%clk 0:01:37]}  Rdf7 {[%clk 0:01:11]} 31. Qc3 {[%clk 0:01:34]}  Qg4 {[%clk 0:00:54]} 32. Rd8+ {[%clk 0:01:22]}  Kh7 {[%clk 0:00:54]} 33. Qe3 {[%clk 0:01:16]}  Qh5 {[%clk 0:00:42]} 34. Rd2 {[%clk 0:01:13]}  Rxd2 {[%clk 0:00:26]} 35. Qxd2 {[%clk 0:01:14]}  Qe5 {[%clk 0:00:26]} 36. Kg1 {[%clk 0:01:02]}  Re7 {[%clk 0:00:19]} 37. Rd1 {[%clk 0:01:00]}  Qe6 {[%clk 0:00:16]} 38. Qc2 {[%clk 0:00:55]}  Qe5 {[%clk 0:00:12]} 39. Qd3 {[%clk 0:00:44]}  h5 {[%clk 0:00:10]} 40. Qd6 {[%clk 0:00:42]}  Qxd6 {[%clk 0:00:06]} 41. Rxd6 {[%clk 0:00:43]}  g6 {[%clk 0:00:05]} 42. Kf2 {[%clk 0:00:42]}  Kg7 {[%clk 0:00:05]} 43. Ke3 {[%clk 0:00:41]}  Rc7 {[%clk 0:00:05]} 44. Bh3 {[%clk 0:00:38]}  Rc3+ {[%clk 0:00:02]} 45. Kf4 {[%clk 0:00:38]}  Rc7 {[%clk 0:00:00]} 46. e5 {[%clk 0:00:37]} 1-0


[Site "https://www.chess.com"]

[Event "Titled Tuesday Blitz August 08 Late 2023"]
[White "Shapiro, Daniel"]
[Black "Goldin, Alexander"]
[WhiteFideId "2001780"]
[BlackFideId "2019540"]
[WhiteElo "2334"]
[BlackElo "2612"]
[Result "0-1"]
[Round "1"]
[TimeControl "180+1"]
[Date "2023.08.08"]
[WhiteClock "0:00:00"]
[BlackClock "0:00:07"]
[Board "121"]

1. d4 {[%clk 0:03:00]}  Nf6 {[%clk 0:02:58]} 2. c4 {[%clk 0:03:01]}  e6 {[%clk 0:02:58]} 3. g3 {[%clk 0:03:00]}  Bb4+ {[%clk 0:02:55]} 4. Bd2 {[%clk 0:03:00]}  a5 {[%clk 0:02:53]} 5. Bg2 {[%clk 0:02:58]}  O-O {[%clk 0:02:54]} 6. Nf3 {[%clk 0:02:58]}  b6 {[%clk 0:02:53]} 7. O-O {[%clk 0:02:56]}  Bb7 {[%clk 0:02:53]} 8. Nc3 {[%clk 0:02:53]}  d5 {[%clk 0:02:47]} 9. Qc2 {[%clk 0:02:41]}  Be7 {[%clk 0:02:38]} 10. b3 {[%clk 0:02:37]}  Na6 {[%clk 0:02:38]} 11. Rac1 {[%clk 0:02:28]}  c5 {[%clk 0:02:34]} 12. Nb5 {[%clk 0:02:14]}  Nb4 {[%clk 0:02:16]} 13. Qb2 {[%clk 0:02:06]}  Ne4 {[%clk 0:02:06]} 14. Be1 {[%clk 0:02:00]}  Bf6 {[%clk 0:01:55]} 15. Nd2 {[%clk 0:01:52]}  cxd4 {[%clk 0:01:46]} 16. Nxd4 {[%clk 0:01:36]}  Nxd2 {[%clk 0:01:08]} 17. Bxd2 {[%clk 0:01:36]}  dxc4 {[%clk 0:01:03]} 18. Bxb7 {[%clk 0:01:00]}  Bxd4 {[%clk 0:01:02]} 19. Bc3 {[%clk 0:01:00]}  Bxc3 {[%clk 0:00:59]} 20. Rxc3 {[%clk 0:00:59]}  Ra7 {[%clk 0:00:59]} 21. Bf3 {[%clk 0:00:49]}  cxb3 {[%clk 0:00:57]} 22. a3 {[%clk 0:00:45]}  Na6 {[%clk 0:00:53]} 23. Rxb3 {[%clk 0:00:44]}  Nc5 {[%clk 0:00:54]} 24. Rb5 {[%clk 0:00:36]}  Rd7 {[%clk 0:00:54]} 25. Qc2 {[%clk 0:00:19]}  Rd2 {[%clk 0:00:48]} 26. Qc4 {[%clk 0:00:18]}  Rd6 {[%clk 0:00:32]} 27. Kg2 {[%clk 0:00:18]}  Qc7 {[%clk 0:00:32]} 28. Rfb1 {[%clk 0:00:18]}  Rfd8 {[%clk 0:00:31]} 29. Qc3 {[%clk 0:00:16]}  g6 {[%clk 0:00:30]} 30. Qe5 {[%clk 0:00:16]}  Qa7 {[%clk 0:00:22]} 31. Qb2 {[%clk 0:00:15]}  Qe7 {[%clk 0:00:17]} 32. Qc3 {[%clk 0:00:12]}  Qc7 {[%clk 0:00:15]} 33. Qc4 {[%clk 0:00:12]}  R8d7 {[%clk 0:00:14]} 34. Qc2 {[%clk 0:00:11]}  e5 {[%clk 0:00:14]} 35. Qc4 {[%clk 0:00:11]}  Kg7 {[%clk 0:00:14]} 36. e3 {[%clk 0:00:10]}  f6 {[%clk 0:00:14]} 37. Be2 {[%clk 0:00:10]}  Qc6+ {[%clk 0:00:10]} 38. Bf3 {[%clk 0:00:09]}  e4 {[%clk 0:00:11]} 39. Be2 {[%clk 0:00:09]}  Qc7 {[%clk 0:00:11]} 40. Bf1 {[%clk 0:00:09]}  Rd2 {[%clk 0:00:11]} 41. Qc3 {[%clk 0:00:08]}  R7d6 {[%clk 0:00:08]} 42. Qc4 {[%clk 0:00:08]}  R2d5 {[%clk 0:00:05]} 43. Qc3 {[%clk 0:00:07]}  Rf5 {[%clk 0:00:06]} 44. Qc4 {[%clk 0:00:06]}  Qd8 {[%clk 0:00:06]} 45. Qc3 {[%clk 0:00:06]}  Rd2 {[%clk 0:00:06]} 46. R5b2 {[%clk 0:00:03]}  Rfxf2+ {[%clk 0:00:06]} 47. Kg1 {[%clk 0:00:03]}  Rxb2 {[%clk 0:00:06]} 48. Rxb2 {[%clk 0:00:03]}  Rxb2 {[%clk 0:00:06]} 49. Qxb2 {[%clk 0:00:04]}  Qd6 {[%clk 0:00:06]} 50. Qd4 {[%clk 0:00:04]}  Qxd4 {[%clk 0:00:06]} 51. exd4 {[%clk 0:00:05]}  Nd3 {[%clk 0:00:06]} 52. Kg2 {[%clk 0:00:04]}  Kf7 {[%clk 0:00:06]} 53. Be2 {[%clk 0:00:04]}  Ke6 {[%clk 0:00:06]} 54. Kf1 {[%clk 0:00:00]}  Kd5 {[%clk 0:00:07]} 0-1


[Site "https://www.chess.com"]

[Event "Titled Tuesday Blitz August 08 Late 2023"]
[White "Hilary46"]
[Black "Vasques, Antonio Pedro Freixial"]
[BlackFideId "1908332"]
[WhiteElo "2611"]
[BlackElo "2329"]
[Result "1-0"]
[Round "1"]
[TimeControl "180+1"]
[Date "2023.08.08"]
[WhiteClock "0:00:34"]
[BlackClock "0:00:28"]
[Board "122"]

1. e4 {[%clk 0:02:56]}  c5 {[%clk 0:02:59]} 2. Nf3 {[%clk 0:02:56]}  Nc6 {[%clk 0:02:59]} 3. d4 {[%clk 0:02:57]}  cxd4 {[%clk 0:03:00]} 4. Nxd4 {[%clk 0:02:58]}  e5 {[%clk 0:03:00]} 5. Nb5 {[%clk 0:02:57]}  d6 {[%clk 0:03:01]} 6. c4 {[%clk 0:02:55]}  Be7 {[%clk 0:03:00]} 7. Be2 {[%clk 0:02:55]}  f5 {[%clk 0:03:00]} 8. exf5 {[%clk 0:02:54]}  Bxf5 {[%clk 0:02:59]} 9. N1c3 {[%clk 0:02:54]}  a6 {[%clk 0:02:59]} 10. Na3 {[%clk 0:02:54]}  Nf6 {[%clk 0:02:59]} 11. O-O {[%clk 0:02:52]}  O-O {[%clk 0:03:00]} 12. Nc2 {[%clk 0:02:50]}  Qe8 {[%clk 0:02:22]} 13. Ne3 {[%clk 0:02:38]}  Be6 {[%clk 0:02:22]} 14. Ncd5 {[%clk 0:02:38]}  Rc8 {[%clk 0:02:20]} 15. Nxf6+ {[%clk 0:02:33]}  Rxf6 {[%clk 0:02:19]} 16. Nd5 {[%clk 0:02:34]}  Rf8 {[%clk 0:02:14]} 17. Bg4 {[%clk 0:02:29]}  Nd4 {[%clk 0:02:11]} 18. Bxe6+ {[%clk 0:02:28]}  Nxe6 {[%clk 0:02:12]} 19. b3 {[%clk 0:02:27]}  Bd8 {[%clk 0:02:07]} 20. Be3 {[%clk 0:02:25]}  Qg6 {[%clk 0:02:03]} 21. h3 {[%clk 0:02:22]}  Kh8 {[%clk 0:02:00]} 22. Qg4 {[%clk 0:02:21]}  Qxg4 {[%clk 0:01:57]} 23. hxg4 {[%clk 0:02:22]}  Bg5 {[%clk 0:01:52]} 24. Bxg5 {[%clk 0:02:15]}  Nxg5 {[%clk 0:01:53]} 25. Rad1 {[%clk 0:02:10]}  Ne4 {[%clk 0:01:40]} 26. f3 {[%clk 0:02:03]}  Nc5 {[%clk 0:01:37]} 27. Ne7 {[%clk 0:02:02]}  Rcd8 {[%clk 0:01:36]} 28. Nf5 {[%clk 0:02:01]}  Rf6 {[%clk 0:01:29]} 29. Rfe1 {[%clk 0:01:59]}  g6 {[%clk 0:01:29]} 30. Ne3 {[%clk 0:01:58]}  Ne6 {[%clk 0:01:26]} 31. Nd5 {[%clk 0:01:56]}  Rff8 {[%clk 0:01:26]} 32. Nc3 {[%clk 0:01:51]}  Nd4 {[%clk 0:01:25]} 33. Ne2 {[%clk 0:01:52]}  Ne6 {[%clk 0:01:24]} 34. Rd2 {[%clk 0:01:49]}  b5 {[%clk 0:01:22]} 35. cxb5 {[%clk 0:01:48]}  axb5 {[%clk 0:01:23]} 36. Nc3 {[%clk 0:01:48]}  Nd4 {[%clk 0:01:20]} 37. Ne2 {[%clk 0:01:45]}  Nc6 {[%clk 0:01:13]} 38. Rc1 {[%clk 0:01:43]}  Nb4 {[%clk 0:01:08]} 39. a3 {[%clk 0:01:42]}  Na6 {[%clk 0:01:06]} 40. b4 {[%clk 0:01:42]}  d5 {[%clk 0:01:04]} 41. Nc3 {[%clk 0:01:42]}  Nc7 {[%clk 0:01:02]} 42. Rcd1 {[%clk 0:01:41]}  d4 {[%clk 0:01:02]} 43. Ne4 {[%clk 0:01:41]}  Nd5 {[%clk 0:01:03]} 44. Rc1 {[%clk 0:01:37]}  Rc8 {[%clk 0:01:01]} 45. Rc5 {[%clk 0:01:36]}  Rxc5 {[%clk 0:00:59]} 46. bxc5 {[%clk 0:01:36]}  Rc8 {[%clk 0:00:57]} 47. Rb2 {[%clk 0:01:31]}  Nc3 {[%clk 0:00:56]} 48. c6 {[%clk 0:01:09]}  Rxc6 {[%clk 0:00:49]} 49. Nf2 {[%clk 0:01:03]}  Ra6 {[%clk 0:00:48]} 50. Rb3 {[%clk 0:01:03]}  Kg7 {[%clk 0:00:45]} 51. g5 {[%clk 0:01:04]}  Kf7 {[%clk 0:00:45]} 52. Nd3 {[%clk 0:01:01]}  Ke6 {[%clk 0:00:44]} 53. Nc5+ {[%clk 0:01:02]}  Kd5 {[%clk 0:00:44]} 54. Nxa6 {[%clk 0:01:03]}  Kc4 {[%clk 0:00:45]} 55. Rb4+ {[%clk 0:01:01]}  Kd3 {[%clk 0:00:45]} 56. Rb2 {[%clk 0:00:45]}  Nd1 {[%clk 0:00:35]} 57. Rxb5 {[%clk 0:00:42]}  e4 {[%clk 0:00:30]} 58. fxe4 {[%clk 0:00:42]}  Nc3 {[%clk 0:00:30]} 59. Rb7 {[%clk 0:00:39]}  Kxe4 {[%clk 0:00:28]} 60. Rxh7 {[%clk 0:00:37]}  d3 {[%clk 0:00:28]} 61. Nc5+ {[%clk 0:00:33]}  Kd4 {[%clk 0:00:28]} 62. Nxd3 {[%clk 0:00:34]} 1-0


[Site "https://www.chess.com"]

[Event "Titled Tuesday Blitz August 08 Late 2023"]
[White "Doluhanova, Evgeniya"]
[Black "Rostomyan, Mikayel"]
[WhiteFideId "14112035"]
[BlackFideId "13313754"]
[WhiteElo "2327"]
[BlackElo "2607"]
[Result "1/2-1/2"]
[Round "1"]
[TimeControl "180+1"]
[Date "2023.08.08"]
[WhiteClock "0:00:03"]
[BlackClock "0:00:06"]
[Board "125"]

1. e4 {[%clk 0:02:58]}  c5 {[%clk 0:02:58]} 2. Nf3 {[%clk 0:02:57]}  Nc6 {[%clk 0:02:59]} 3. Bb5 {[%clk 0:02:56]}  g6 {[%clk 0:02:59]} 4. O-O {[%clk 0:02:56]}  Bg7 {[%clk 0:02:59]} 5. Re1 {[%clk 0:02:56]}  Nf6 {[%clk 0:02:57]} 6. c3 {[%clk 0:02:53]}  O-O {[%clk 0:02:57]} 7. d4 {[%clk 0:02:50]}  d5 {[%clk 0:02:57]} 8. e5 {[%clk 0:02:48]}  Ne4 {[%clk 0:02:57]} 9. Nbd2 {[%clk 0:02:44]}  Nxd2 {[%clk 0:02:53]} 10. Bxd2 {[%clk 0:02:43]}  Qb6 {[%clk 0:02:49]} 11. Bxc6 {[%clk 0:02:13]}  bxc6 {[%clk 0:02:49]} 12. dxc5 {[%clk 0:02:12]}  Qxb2 {[%clk 0:02:44]} 13. Qb3 {[%clk 0:02:07]}  Rb8 {[%clk 0:02:42]} 14. Qa4 {[%clk 0:02:00]}  Qb5 {[%clk 0:02:38]} 15. Qxa7 {[%clk 0:01:54]}  Rb7 {[%clk 0:02:38]} 16. Qa3 {[%clk 0:01:53]}  Bg4 {[%clk 0:02:29]} 17. Nd4 {[%clk 0:01:49]}  Qd3 {[%clk 0:02:26]} 18. Bf4 {[%clk 0:01:39]}  Rc8 {[%clk 0:02:22]} 19. h3 {[%clk 0:01:35]}  Bf5 {[%clk 0:02:19]} 20. Rad1 {[%clk 0:01:26]}  Qc4 {[%clk 0:02:15]} 21. Bg3 {[%clk 0:01:21]}  e6 {[%clk 0:02:01]} 22. Nxf5 {[%clk 0:01:20]}  gxf5 {[%clk 0:02:00]} 23. Rd4 {[%clk 0:01:19]}  Qb5 {[%clk 0:01:59]} 24. Bh4 {[%clk 0:01:00]}  Rbb8 {[%clk 0:01:56]} 25. Bf6 {[%clk 0:00:58]}  Ra8 {[%clk 0:01:54]} 26. Qc1 {[%clk 0:00:56]}  Qxc5 {[%clk 0:01:39]} 27. Qg5 {[%clk 0:00:50]}  Qf8 {[%clk 0:01:39]} 28. Rh4 {[%clk 0:00:44]}  Kh8 {[%clk 0:01:31]} 29. Re3 {[%clk 0:00:36]}  Bxf6 {[%clk 0:01:20]} 30. exf6 {[%clk 0:00:31]}  Qg8 {[%clk 0:01:16]} 31. Qh5 {[%clk 0:00:30]}  Qg6 {[%clk 0:01:14]} 32. Qxg6 {[%clk 0:00:25]}  fxg6 {[%clk 0:01:15]} 33. Rxe6 {[%clk 0:00:25]}  Ra7 {[%clk 0:01:08]} 34. a4 {[%clk 0:00:24]}  Kg8 {[%clk 0:01:06]} 35. Rb4 {[%clk 0:00:20]}  Kf7 {[%clk 0:01:04]} 36. Rd6 {[%clk 0:00:18]}  Rcc7 {[%clk 0:00:51]} 37. c4 {[%clk 0:00:18]}  c5 {[%clk 0:00:47]} 38. Rb8 {[%clk 0:00:16]}  dxc4 {[%clk 0:00:48]} 39. Rh8 {[%clk 0:00:16]}  h5 {[%clk 0:00:20]} 40. Rh7+ {[%clk 0:00:16]}  Kg8 {[%clk 0:00:20]} 41. Rxc7 {[%clk 0:00:15]}  Rxc7 {[%clk 0:00:21]} 42. a5 {[%clk 0:00:14]}  c3 {[%clk 0:00:21]} 43. Rd3 {[%clk 0:00:14]}  c4 {[%clk 0:00:20]} 44. Rxc3 {[%clk 0:00:14]}  Kf7 {[%clk 0:00:20]} 45. a6 {[%clk 0:00:14]}  Kxf6 {[%clk 0:00:21]} 46. a7 {[%clk 0:00:14]}  Rxa7 {[%clk 0:00:21]} 47. Rxc4 {[%clk 0:00:15]}  Kg5 {[%clk 0:00:22]} 48. Kh2 {[%clk 0:00:15]}  h4 {[%clk 0:00:21]} 49. g3 {[%clk 0:00:14]}  hxg3+ {[%clk 0:00:19]} 50. Kxg3 {[%clk 0:00:14]}  Ra3+ {[%clk 0:00:19]} 51. Kg2 {[%clk 0:00:15]}  Kh5 {[%clk 0:00:19]} 52. Rc6 {[%clk 0:00:14]}  g5 {[%clk 0:00:19]} 53. Rc8 {[%clk 0:00:14]}  f4 {[%clk 0:00:18]} 54. Rh8+ {[%clk 0:00:14]}  Kg6 {[%clk 0:00:19]} 55. Rg8+ {[%clk 0:00:14]}  Kf5 {[%clk 0:00:19]} 56. Rf8+ {[%clk 0:00:14]}  Ke4 {[%clk 0:00:20]} 57. Re8+ {[%clk 0:00:14]}  Kd3 {[%clk 0:00:20]} 58. Rg8 {[%clk 0:00:13]}  Ra5 {[%clk 0:00:12]} 59. Kf3 {[%clk 0:00:13]}  Kd2 {[%clk 0:00:10]} 60. Kg4 {[%clk 0:00:13]}  Ke2 {[%clk 0:00:10]} 61. f3 {[%clk 0:00:11]}  Kf2 {[%clk 0:00:10]} 62. h4 {[%clk 0:00:11]}  gxh4 {[%clk 0:00:09]} 63. Rh8 {[%clk 0:00:10]}  Ra7 {[%clk 0:00:04]} 64. Rxh4 {[%clk 0:00:09]}  Ke3 {[%clk 0:00:04]} 65. Rh3 {[%clk 0:00:03]}  Rg7+ {[%clk 0:00:04]} 66. Kf5 {[%clk 0:00:03]}  Rg3 {[%clk 0:00:05]} 67. Rh8 {[%clk 0:00:03]}  Kxf3 {[%clk 0:00:05]} 68. Rh4 {[%clk 0:00:03]}  Rg8 {[%clk 0:00:03]} 69. Rxf4+ {[%clk 0:00:03]}  Kg3 {[%clk 0:00:04]} 70. Ra4 {[%clk 0:00:03]}  Rf8+ {[%clk 0:00:04]} 71. Ke6 {[%clk 0:00:04]}  Rh8 {[%clk 0:00:05]} 72. Kd7 {[%clk 0:00:05]}  Kf3 {[%clk 0:00:05]} 73. Kc6 {[%clk 0:00:05]}  Ke3 {[%clk 0:00:05]} 74. Kb7 {[%clk 0:00:06]}  Rh7+ {[%clk 0:00:06]} 75. Kb6 {[%clk 0:00:05]}  Kd3 {[%clk 0:00:07]} 76. Ra8 {[%clk 0:00:04]}  Kc4 {[%clk 0:00:07]} 77. Rd8 {[%clk 0:00:05]}  Rh6+ {[%clk 0:00:06]} 78. Kb7 {[%clk 0:00:05]}  Kc5 {[%clk 0:00:06]} 79. Rc8+ {[%clk 0:00:04]}  Kb5 {[%clk 0:00:06]} 80. Rd8 {[%clk 0:00:04]}  Rh7+ {[%clk 0:00:06]} 81. Kb8 {[%clk 0:00:04]}  Kc6 {[%clk 0:00:06]} 82. Rc8+ {[%clk 0:00:05]}  Kb6 {[%clk 0:00:06]} 83. Rd8 {[%clk 0:00:04]}  Ra7 {[%clk 0:00:05]} 84. Rd6+ {[%clk 0:00:03]}  Kc5 {[%clk 0:00:06]} 85. Kxa7 {[%clk 0:00:03]}  Kxd6 {[%clk 0:00:06]} 1/2-1/2


[Site "https://www.chess.com"]

[Event "Titled Tuesday Blitz August 08 Late 2023"]
[White "Zarubitski, Viachaslau"]
[Black "Harish, Neeraj"]
[WhiteFideId "13509373"]
[BlackFideId "30958130"]
[WhiteElo "2606"]
[BlackElo "2327"]
[Result "1-0"]
[Round "1"]
[TimeControl "180+1"]
[Date "2023.08.08"]
[WhiteClock "0:00:28"]
[BlackClock "0:00:16"]
[Board "126"]

1. e4 {[%clk 0:03:00]}  c6 {[%clk 0:02:56]} 2. d4 {[%clk 0:02:58]}  d5 {[%clk 0:02:55]} 3. Nd2 {[%clk 0:02:58]}  dxe4 {[%clk 0:02:55]} 4. Nxe4 {[%clk 0:02:59]}  Nf6 {[%clk 0:02:54]} 5. Nxf6+ {[%clk 0:02:57]}  exf6 {[%clk 0:02:55]} 6. c3 {[%clk 0:02:52]}  Bd6 {[%clk 0:02:55]} 7. Bd3 {[%clk 0:02:53]}  O-O {[%clk 0:02:55]} 8. Qf3 {[%clk 0:02:51]}  Re8+ {[%clk 0:02:44]} 9. Ne2 {[%clk 0:02:51]}  Nd7 {[%clk 0:02:36]} 10. h4 {[%clk 0:02:44]}  Nf8 {[%clk 0:02:30]} 11. h5 {[%clk 0:02:42]}  Be6 {[%clk 0:02:24]} 12. c4 {[%clk 0:02:29]}  Qd7 {[%clk 0:02:08]} 13. Rh4 {[%clk 0:02:28]}  b5 {[%clk 0:02:06]} 14. b3 {[%clk 0:02:22]}  Bb4+ {[%clk 0:01:58]} 15. Kf1 {[%clk 0:02:22]}  a5 {[%clk 0:01:38]} 16. Be3 {[%clk 0:02:16]}  a4 {[%clk 0:01:37]} 17. Rd1 {[%clk 0:02:09]}  axb3 {[%clk 0:01:37]} 18. axb3 {[%clk 0:02:10]}  Ra3 {[%clk 0:01:34]} 19. d5 {[%clk 0:02:04]}  cxd5 {[%clk 0:01:30]} 20. cxb5 {[%clk 0:02:04]}  Rxb3 {[%clk 0:01:28]} 21. Nd4 {[%clk 0:02:04]}  Rc3 {[%clk 0:01:26]} 22. h6 {[%clk 0:02:03]}  Ng6 {[%clk 0:01:22]} 23. Bxg6 {[%clk 0:02:03]}  fxg6 {[%clk 0:01:20]} 24. hxg7 {[%clk 0:02:02]}  Bc5 {[%clk 0:01:07]} 25. Qxf6 {[%clk 0:01:50]}  Rxe3 {[%clk 0:00:56]} 26. fxe3 {[%clk 0:01:37]}  Be7 {[%clk 0:00:50]} 27. Qf2 {[%clk 0:01:13]}  Bxh4 {[%clk 0:00:49]} 28. Qxh4 {[%clk 0:01:13]}  Kxg7 {[%clk 0:00:49]} 29. Kg1 {[%clk 0:01:12]}  Rf8 {[%clk 0:00:48]} 30. Qg3 {[%clk 0:01:10]}  Bf5 {[%clk 0:00:46]} 31. Qe5+ {[%clk 0:01:10]}  Kg8 {[%clk 0:00:47]} 32. Rc1 {[%clk 0:01:08]}  Rf7 {[%clk 0:00:32]} 33. b6 {[%clk 0:01:05]}  Qb7 {[%clk 0:00:27]} 34. Qd6 {[%clk 0:00:38]}  Kg7 {[%clk 0:00:27]} 35. Rc7 {[%clk 0:00:34]}  Rxc7 {[%clk 0:00:19]} 36. Qxc7+ {[%clk 0:00:28]}  Qxc7 {[%clk 0:00:18]} 37. bxc7 {[%clk 0:00:29]}  Kf7 {[%clk 0:00:16]} 38. Nxf5 {[%clk 0:00:28]} 1-0


[Site "https://www.chess.com"]